bitfinex-derivatives/quotes_BTCF0:USTF0_20210109
["timestamp","ask_amount","ask_price","bid_price","bid_amount"]
[1610154782088,0.4546148,40209.0,40188.0,0.13632608]
[1610154782488,0.0148211,40212.0,40192.0,3.4187]
[1610154782886,0.01483388,40213.0,40208.0,0.13632608]
[1610154783588,0.45558961,40214.0,40208.0,0.13632608]
[1610154783786,0.45558961,40214.0,40203.0,3.904]
[1610154783985,0.01482887,40213.0,40203.0,3.904]
[1610154784286,0.01482887,40213.0,40178.0,0.10709]
[1610154784589,3.6452,40209.0,40178.0,0.10709]
[1610154784787,0.01482887,40213.0,40169.0,0.08203]
[1610154784788,0.1569,40208.0,40169.0,0.08203]
[1610154784987,0.13632608,40170.0,40169.0,0.21835608]
[1610154785590,0.12178,40192.0,40169.0,0.21835608]
[1610154786889,0.12178,40192.0,40179.0,0.13632608]
[1610154788794,0.12178,40192.0,40169.0,0.08203]
[1610154788993,0.13632608,40170.0,40165.0,0.13632608]
[1610154789194,0.22726608,40170.0,40165.0,0.13632608]
[1610154794804,0.09094,40170.0,40165.0,0.13632608]
[1610154795104,0.09437,40180.0,40165.0,0.13632608]
[1610154796909,0.09437,40180.0,40172.0,0.13632608]
[1610154798608,0.12178,40192.0,40172.0,0.13632608]
[1610154799007,0.13632608,40173.0,40172.0,0.13632608]
[1610154800008,0.09102,40177.0,40172.0,0.13632608]
[1610154804517,0.13632608,40183.0,40172.0,0.13632608]
[1610154805116,0.13632608,40183.0,40182.0,0.13632608]
[1610154807120,0.13632608,40183.0,40174.0,0.13632608]
[1610154807319,0.22070608,40183.0,40174.0,0.13632608]
[1610154809023,0.13632608,40175.0,40174.0,0.13632608]
[1610154809525,0.08438,40183.0,40174.0,0.13632608]
[1610154810025,0.08438,40183.0,40175.0,3.047]
[1610154811123,0.08438,40183.0,40182.0,0.13632608]
[1610154812738,0.13632608,40198.0,40182.0,0.13632608]
[1610154813124,0.13632608,40198.0,40197.0,0.13632608]
[1610154813927,0.13632608,40198.0,40175.0,3.047]
[1610154814126,0.23882608,40198.0,40175.0,3.047]
[1610154815030,0.1025,40198.0,40193.0,0.13632608]
[1610154817029,0.13632608,40194.0,40193.0,0.13632608]
[1610154820631,0.13632608,40194.0,40175.0,3.047]
[1610154821232,0.1025,40198.0,40182.0,0.13632608]
[1610154821633,0.2902,40199.0,40182.0,0.13632608]
[1610154822032,0.2902,40199.0,40157.0,0.09486]
[1610154822033,3.3739,40199.0,40166.0,3.5929]
[1610154822233,0.46472082,40198.0,40166.0,3.5929]
[1610154822635,0.01512683,40195.0,40166.0,3.5929]
[1610154823135,0.01512191,40192.0,40168.0,0.13632608]
[1610154823436,0.01512191,40192.0,40166.0,3.5929]
[1610154823639,0.46446132,40191.0,40166.0,3.5929]
[1610154824042,0.4639822,40188.0,40166.0,3.5929]
[1610154824240,0.5439822,40188.0,40166.0,3.5929]
[1610154824439,0.08,40188.0,40166.0,3.5929]
[1610154825236,0.08,40188.0,40175.0,0.13632608]
[1610154826038,0.08,40188.0,40166.0,3.5929]
[1610154827144,0.13632608,40167.0,40166.0,3.5929]
[1610154827642,0.09247,40173.0,40166.0,3.5929]
[1610154829142,0.09247,40173.0,40171.0,0.13632608]
[1610154830047,0.08,40188.0,40171.0,0.13632608]
[1610154830344,0.01513841,40192.0,40171.0,0.13632608]
[1610154830544,0.01514867,40193.0,40171.0,0.13632608]
[1610154831245,0.01514867,40193.0,40183.0,0.13632608]
[1610154831646,0.46440522,40192.0,40183.0,0.13632608]
[1610154832146,0.01511751,40194.0,40183.0,0.13632608]
[1610154832944,0.01510413,40193.0,40167.0,0.10587]
[1610154833144,0.01510413,40193.0,40173.0,0.13632608]
[1610154833344,0.01510405,40192.0,40173.0,0.13632608]
[1610154833745,0.01508976,40190.0,40173.0,0.13632608]
[1610154833944,0.36398501,40188.0,40183.0,3.8929]
[1610154835246,0.36398501,40188.0,40187.0,0.13632608]
[1610154839151,0.50031109,40188.0,40187.0,0.13632608]
[1610154839350,0.50031109,40188.0,40172.0,0.09045]
[1610154840251,0.50031109,40188.0,40168.0,4.1265]
[1610154840551,0.03,40184.0,40168.0,4.1265]
[1610154841250,0.13632608,40181.0,40180.0,0.13632608]
[1610154841449,0.13632608,40181.0,40180.0,0.12052608]
[1610154842952,0.03,40184.0,40180.0,0.12052608]
[1610154846453,0.03,40184.0,40180.0,0.23742608]
[1610154853163,0.16632608,40184.0,40180.0,0.23742608]
[1610154853564,0.03,40184.0,40180.0,0.23742608]
[1610154854563,0.03,40184.0,40180.0,0.21742608]
[1610154879886,0.15521,40184.0,40180.0,0.10052608]
[1610154893504,0.29153608,40184.0,40180.0,0.10052608]
[1610154897609,0.15521,40184.0,40180.0,0.10052608]
[1610154897810,0.15521,40184.0,40183.0,3.3536]
[1610154899514,0.15521,40184.0,40180.0,0.10052608]
[1610154899715,0.15521,40184.0,40181.0,2.9347]
[1610154904821,0.15521,40184.0,40180.0,0.10052608]
[1610154905022,0.15521,40184.0,40183.0,3.8037]
[1610154913030,0.03,40184.0,40183.0,3.8037]
[1610154956287,0.03,40184.0,40183.0,5.3037]
[1610154957087,0.36398501,40188.0,40183.0,5.3037]
[1610154957284,0.36398501,40188.0,40183.0,3.8037]
[1610154957687,0.36398501,40188.0,40180.0,0.10052608]
[1610154957886,0.36398501,40188.0,40187.0,0.13632608]
[1610154960291,0.36398501,40188.0,40187.0,3.27482608]
[1610154977910,0.36398501,40188.0,40187.0,0.13632608]
[1610154979213,0.36398501,40188.0,40187.0,2.99672608]
[1610155011653,0.06012332,40188.0,40187.0,2.99672608]
[1610155014758,0.05012332,40188.0,40187.0,2.99672608]
[1610155016660,0.04012332,40188.0,40187.0,2.99672608]
[1610155017063,0.13632608,40213.0,40187.0,2.99672608]
[1610155018261,0.09561,40214.0,40187.0,2.8604]
[1610155018663,2.8688,40222.0,40188.0,0.01]
[1610155018863,0.2859,40225.0,40219.0,0.13632608]
[1610155020863,0.13632608,40220.0,40219.0,0.13632608]
[1610155021065,0.22338608,40220.0,40219.0,0.13632608]
[1610155025972,0.22338608,40220.0,40196.0,0.0098]
[1610155026175,3.9564,40210.0,40196.0,0.0098]
[1610155026472,0.09769,40210.0,40196.0,0.0098]
[1610155026673,4.0748,40197.0,40196.0,0.0098]
[1610155026872,4.32999608,40197.0,40196.0,0.0098]
[1610155029376,5.82999608,40197.0,40196.0,0.0098]
[1610155030681,6.29945279,40197.0,40196.0,0.0098]
[1610155030880,4.79945279,40197.0,40196.0,0.0098]
[1610155031081,5.69413698,40197.0,40196.0,0.0098]
[1610155033783,4.78416745,40197.0,40196.0,0.0098]
[1610155034384,5.69264821,40197.0,40196.0,0.0098]
[1610155034685,4.78416745,40197.0,40196.0,0.0098]
[1610155035284,4.78416745,40197.0,40188.0,0.01]
[1610155035785,1.5,40196.0,40188.0,0.01]
[1610155035985,0.46750251,40195.0,40188.0,0.01]
[1610155036388,0.01522181,40193.0,40188.0,0.01]
[1610155036895,0.13632608,40189.0,40188.0,0.01]
[1610155037190,6.02875099,40189.0,40188.0,0.01]
[1610155038090,7.23888626,40189.0,40188.0,0.01]
[1610155038488,6.69118756,40189.0,40113.0,2.3997138]
[1610155038688,2.8144,40146.0,40113.0,2.3997138]
[1610155038892,2.8144,40146.0,40098.0,2.8593]
[1610155038893,2.93395,40146.0,40133.0,0.13632608]
[1610155039090,2.93395,40146.0,40115.0,0.10284]
[1610155039294,0.11955,40146.0,40115.0,0.10284]
[1610155039493,3.3669,40125.0,40115.0,0.10284]
[1610155040097,3.3669,40125.0,40092.0,6.16657447]
[1610155040592,3.3669,40125.0,40092.0,3.7635]
[1610155040792,3.3669,40125.0,40110.0,0.13632608]
[1610155043094,0.13632608,40111.0,40110.0,0.13632608]
[1610155044195,3.01482608,40111.0,40110.0,0.13632608]
[1610155051304,0.13632608,40111.0,40110.0,0.13632608]
[1610155051504,0.09927,40112.0,40110.0,0.13632608]
[1610155051703,0.08737,40129.0,40110.0,0.13632608]
[1610155052104,2.8467,40132.0,40110.0,0.13632608]
[1610155053306,0.13632608,40132.0,40131.0,0.13632608]
[1610155053504,4.0512,40152.0,40131.0,0.13632608]
[1610155053807,0.01487109,40180.0,40131.0,0.13632608]
[1610155053808,0.2923,40170.0,40131.0,0.13632608]
[1610155054006,0.2923,40170.0,40131.0,3.95652608]
[1610155055007,0.5812,40168.0,40131.0,0.13632608]
[1610155055208,2.9866,40163.0,40146.0,0.13632608]
[1610155055408,0.08683,40168.0,40146.0,0.13632608]
[1610155055608,2.7919,40163.0,40146.0,0.13632608]
[1610155056008,0.08683,40168.0,40146.0,0.13632608]
[1610155056209,3.1509,40161.0,40146.0,0.13632608]
[1610155056439,3.1509,40161.0,40128.0,3.4744]
[1610155057110,3.1509,40161.0,40139.0,0.13632608]
[1610155059112,0.13632608,40140.0,40139.0,0.13632608]
[1610155059812,0.21703608,40140.0,40139.0,0.13632608]
[1610155062521,0.21703608,40140.0,40119.0,3.4349]
[1610155062725,0.63213608,40140.0,40119.0,3.4349]
[1610155063126,0.49581,40140.0,40132.0,0.13632608]
[1610155063323,0.49581,40140.0,40119.0,3.4349]
[1610155063324,3.2848,40131.0,40115.0,0.09634]
[1610155063522,3.2848,40131.0,40105.0,0.08253]
[1610155063733,3.36273,40131.0,40100.0,3.2233]
[1610155065223,0.07793,40131.0,40130.0,0.13632608]
[1610155066224,0.2749,40139.0,40130.0,0.13632608]
[1610155067123,0.2749,40139.0,40138.0,0.13632608]
[1610155070126,0.08071,40140.0,40138.0,0.13632608]
[1610155070325,0.2993,40166.0,40139.0,3.9429]
[1610155070529,0.2862,40165.0,40139.0,3.9429]
[1610155071125,0.2862,40165.0,40164.0,0.13632608]
[1610155073326,0.42252608,40165.0,40164.0,0.13632608]
[1610155073727,0.42252608,40165.0,40147.0,3.1398]
[1610155074527,0.42252608,40165.0,40147.0,2.68609462]
[1610155075232,0.2862,40165.0,40154.0,0.13632608]
[1610155075527,0.2862,40165.0,40147.0,2.68609462]
[1610155075728,0.2862,40165.0,40124.0,0.12146]
[1610155075929,0.2862,40165.0,40122.0,3.1331]
[1610155077132,0.13632608,40132.0,40131.0,0.13632608]
[1610155083646,0.08399,40133.0,40131.0,0.13632608]
[1610155083846,3.5171,40164.0,40131.0,0.13632608]
[1610155084046,0.2862,40165.0,40131.0,0.13632608]
[1610155084248,0.2862,40165.0,40137.0,3.8818]
[1610155085348,0.2862,40165.0,40156.0,0.13632608]
[1610155086548,0.2862,40165.0,40156.0,3.33522608]
[1610155087249,0.13632608,40175.0,40167.0,0.13632608]
[1610155087650,0.18196481,40165.0,40156.0,3.1989]
[1610155087850,0.28618481,40165.0,40156.0,3.1989]
[1610155089351,0.28618481,40165.0,40164.0,0.73102608]
[1610155093251,0.42251089,40165.0,40164.0,0.5947]
[1610155099260,0.28618481,40165.0,40164.0,0.73102608]
[1610155102367,0.18196481,40165.0,40164.0,0.83438608]
[1610155103767,0.11887,40197.0,40164.0,0.83438608]
[1610155104067,0.13632608,40205.0,40164.0,0.83438608]
[1610155105171,0.13632608,40205.0,40164.0,0.23968608]
[1610155105471,0.46513674,40218.0,40191.0,0.13632608]
[1610155105671,0.46513674,40218.0,40193.0,3.651]
[1610155105872,0.0151383,40217.0,40193.0,3.651]
[1610155106073,0.1368883,40217.0,40193.0,3.651]
[1610155106274,0.12175,40217.0,40193.0,3.651]
[1610155106974,0.12175,40217.0,40191.0,0.13632608]
[1610155107275,0.12175,40217.0,40199.0,3.9471]
[1610155107475,0.12175,40217.0,40210.0,0.13632608]
[1610155108678,0.12175,40217.0,40199.0,3.9471]
[1610155109377,0.12175,40217.0,40204.0,0.13632608]
[1610155111076,0.01511879,40226.0,40204.0,0.13632608]
[1610155111377,0.13632608,40205.0,40204.0,0.13632608]
[1610155111781,0.25345608,40205.0,40204.0,0.13632608]
[1610155112778,0.11713,40205.0,40204.0,0.13632608]
[1610155113480,0.25345608,40205.0,40204.0,0.13632608]
[1610155113681,0.25345608,40205.0,40199.0,3.9471]
[1610155113682,0.11713,40205.0,40199.0,3.9471]
[1610155115286,0.11713,40205.0,40173.0,0.08588]
[1610155115483,0.11713,40205.0,40164.0,0.10336]
[1610155115484,0.11713,40205.0,40177.0,2.7829]
[1610155117084,3.5906,40221.0,40177.0,2.7829]
[1610155117384,3.5906,40221.0,40192.0,0.13632608]
[1610155119489,0.13632608,40193.0,40192.0,0.13632608]
[1610155119688,0.22644608,40193.0,40177.0,2.7829]
[1610155121392,0.09012,40193.0,40187.0,0.13632608]
[1610155123395,0.13632608,40188.0,40187.0,0.13632608]
[1610155129303,0.09012,40193.0,40187.0,0.64542608]
[1610155129508,0.1569,40215.0,40187.0,0.64542608]
[1610155129509,0.13632608,40199.0,40192.0,0.13632608]
[1610155131406,0.13632608,40199.0,40198.0,0.13632608]
[1610155131608,0.13632608,40199.0,40190.0,2.7926]
[1610155131807,0.22535608,40199.0,40190.0,2.7926]
[1610155133410,0.22535608,40199.0,40198.0,0.13632608]
[1610155140717,0.08903,40199.0,40198.0,0.13632608]
[1610155140919,0.2843,40221.0,40198.0,0.13632608]
[1610155141117,0.14078395,40199.0,40198.0,0.13632608]
[1610155141316,0.26264395,40199.0,40198.0,0.13632608]
[1610155142018,0.26264395,40199.0,40198.0,4.16712608]
[1610155161944,0.26264395,40199.0,40198.0,0.13632608]
[1610155162144,4.43114395,40199.0,40174.0,0.08992]
[1610155162344,3.8058,40175.0,40169.0,2.36901443]
[1610155162557,3.8058,40175.0,40160.0,2.37942759]
[1610155162748,0.0738,40174.0,40160.0,2.37942759]
[1610155162947,5.64975168,40161.0,40130.0,3.4569]
[1610155163146,5.75313168,40161.0,40097.0,1.5]
[1610155163448,2.40774387,40131.0,40075.0,1.5]
[1610155163714,0.13632608,40076.0,40065.0,2.42360574]
[1610155163949,0.13632608,40076.0,40038.0,0.13632608]
[1610155164150,3.0121,40057.0,40021.0,4.0539]
[1610155164346,0.13632608,40076.0,40013.0,2.40758442]
[1610155164548,3.613,40043.0,40013.0,0.09263]
[1610155164749,0.13632608,40076.0,40013.0,0.09263]
[1610155164950,3.1015,40026.0,40013.0,0.09263]
[1610155165248,0.10903,40039.0,40013.0,0.07263]
[1610155165647,0.13632608,40014.0,40013.0,0.07263]
[1610155165852,4.0598,40010.0,40003.0,0.12525]
[1610155166752,4.0598,40010.0,39974.0,3.8858]
[1610155166947,0.0747,40013.0,39915.0,2.36625279]
[1610155167152,3.4138,39995.0,39931.0,2.9648]
[1610155167447,3.53187,39995.0,39931.0,2.9648]
[1610155167851,0.11807,39995.0,39938.0,0.13632608]
[1610155168051,3.1842,39970.0,39938.0,0.09804]
[1610155168260,0.0738,39969.0,39938.0,0.09804]
[1610155168454,0.0738,39969.0,39938.0,3.51914]
[1610155168751,0.0738,39969.0,39938.0,0.09804]
[1610155168954,4.0158,39955.0,39938.0,0.09804]
[1610155169158,4.11064,39955.0,39920.0,2.9244]
[1610155169359,2.8234,39942.0,39915.0,0.08172]
[1610155169651,3.4575,39936.0,39915.0,0.08172]
[1610155169953,0.13632608,39916.0,39915.0,0.08172]
[1610155170152,0.21232608,39916.0,39915.0,0.08172]
[1610155170853,0.21232608,39916.0,39900.0,0.25]
[1610155171254,0.31260608,39916.0,39900.0,0.25]
[1610155171553,3.2068,39903.0,39900.0,0.25]
[1610155171751,0.13632608,39901.0,39900.0,0.25]
[1610155173753,0.13632608,39901.0,39900.0,0.1886]
[1610155173956,0.13632608,39901.0,39900.0,0.1318]
[1610155174157,0.13632608,39901.0,39900.0,0.0278]
[1610155174459,0.13632608,39901.0,39800.0,0.25]
[1610155174460,3.1949,39848.0,39800.0,0.25]
[1610155174956,0.10608,39856.0,39800.0,0.25]
[1610155175155,0.10608,39856.0,39819.0,4.1423]
[1610155175355,0.10608,39856.0,39819.0,4.23782]
[1610155175558,0.10608,39856.0,39819.0,0.09552]
[1610155175758,0.10608,39856.0,39855.0,0.13632608]
[1610155175956,0.12237,39903.0,39855.0,0.24289608]
[1610155176356,0.12237,39903.0,39871.0,3.3754]
[1610155176657,3.3287,39945.0,39871.0,3.48629]
[1610155176856,0.076,39902.0,39871.0,3.48629]
[1610155177759,0.076,39902.0,39884.0,0.13632608]
[1610155178058,0.076,39902.0,39884.0,0.07876]
[1610155178259,0.4538,39901.0,39884.0,0.07876]
[1610155178457,0.09876,39901.0,39884.0,0.07876]
[1610155178659,3.5408,39894.0,39884.0,0.07876]
[1610155179061,3.5408,39894.0,39871.0,0.11089]
[1610155179460,3.5408,39894.0,39855.0,0.10657]
[1610155179762,0.13632608,39856.0,39855.0,0.10657]
[1610155179958,0.21092608,39856.0,39855.0,0.10657]
[1610155180359,0.13632608,39856.0,39855.0,0.10657]
[1610155180660,0.09876,39901.0,39855.0,0.10657]
[1610155180860,0.09876,39901.0,39861.0,3.9277]
[1610155181263,0.0758,39910.0,39861.0,3.9277]
[1610155181763,0.13632608,39862.0,39861.0,3.9277]
[1610155181963,0.13632608,39862.0,39855.0,0.10657]
[1610155182366,0.13632608,39862.0,39841.0,0.13632608]
[1610155182664,0.13632608,39862.0,39700.0,0.25]
[1610155183164,0.13632608,39862.0,39749.0,3.5917]
[1610155183866,0.13632608,39814.0,39803.0,0.13632608]
[1610155184269,0.0903,39879.0,39803.0,0.13632608]
[1610155184469,0.0903,39879.0,39807.0,0.09718]
[1610155185871,0.0903,39879.0,39851.0,0.13632608]
[1610155186068,0.0903,39879.0,39851.0,0.10436]
[1610155187471,0.5671,39879.0,39851.0,0.10436]
[1610155187971,0.13632608,39852.0,39839.0,0.10322]
[1610155189068,0.25164608,39852.0,39808.0,3.4111]
[1610155189769,0.11532,39852.0,39808.0,3.4111]
[1610155190670,4.1772,39859.0,39808.0,3.4111]
[1610155192375,0.0903,39879.0,39807.0,0.09718]
[1610155192573,0.1569,39993.0,39807.0,0.09718]
[1610155192574,3.7968,39852.0,39807.0,0.09718]
[1610155192773,3.9841,39851.0,39807.0,0.09718]
[1610155193875,0.13632608,39808.0,39807.0,0.09718]
[1610155197280,0.13632608,39808.0,39807.0,0.01]
[1610155198180,0.08956,39823.0,39807.0,0.01]
[1610155198878,0.09981,39833.0,39807.0,0.01]
[1610155199078,3.4899,39861.0,39807.0,0.01]
[1610155199779,0.13632608,39808.0,39807.0,0.01]
[1610155204489,0.07723,39821.0,39807.0,0.01]
[1610155204694,3.5229,39846.0,39807.0,0.01]
[1610155205892,0.13632608,39808.0,39807.0,0.01]
[1610155206891,0.08337,39840.0,39807.0,0.01]
[1610155207391,0.1569,39858.0,39807.0,0.01]
[1610155207792,0.13632608,39824.0,39818.0,0.13632608]
[1610155208793,0.13632608,39824.0,39807.0,0.01]
[1610155209394,3.0362,39842.0,39807.0,0.01]
[1610155209894,0.13632608,39808.0,39807.0,0.01]
[1610155211293,3.0362,39842.0,39807.0,0.01]
[1610155211494,0.11864,39847.0,39807.0,0.01]
[1610155212395,0.1569,39858.0,39807.0,0.01]
[1610155213896,0.13632608,39857.0,39856.0,0.13632608]
[1610155214095,0.17482,39860.0,39856.0,0.13632608]
[1610155214695,0.0746,39881.0,39856.0,0.13632608]
[1610155216597,0.0746,39881.0,39851.0,2.8941]
[1610155217198,0.0746,39881.0,39850.0,0.09551]
[1610155217899,0.0746,39881.0,39856.0,0.13632608]
[1610155219300,0.0746,39881.0,39857.0,0.4965]
[1610155220100,0.13632608,39875.0,39857.0,0.4965]
[1610155221100,0.13632608,39875.0,39850.0,0.09551]
[1610155221299,0.13632608,39875.0,39841.0,0.10635]
[1610155221500,0.13632608,39875.0,39838.0,4.189]
[1610155221701,0.13632608,39875.0,39831.0,0.11166]
[1610155222001,0.1569,39874.0,39838.0,0.13632608]
[1610155222199,0.1569,39874.0,39818.0,3.4545]
[1610155223900,0.13632608,39854.0,39853.0,0.13632608]
[1610155224101,0.13632608,39854.0,39818.0,3.4545]
[1610155224803,0.13632608,39854.0,39826.0,0.03]
[1610155225003,0.13632608,39854.0,39826.0,0.1149]
[1610155226106,0.13632608,39827.0,39826.0,0.1149]
[1610155227005,0.7879,39860.0,39826.0,0.1149]
[1610155227510,0.0751,39859.0,39826.0,0.1149]
[1610155229608,0.89985,39860.0,39826.0,0.1149]
[1610155229912,0.01368048,39859.0,39826.0,0.1149]
[1610155230109,0.13632608,39827.0,39826.0,0.1149]
[1610155232611,0.10174,39841.0,39826.0,0.1149]
[1610155233013,0.01375916,39852.0,39826.0,0.1149]
[1610155233311,0.42263999,39859.0,39826.0,0.1149]
[1610155233712,0.7879,39860.0,39826.0,0.1149]
[1610155234014,0.7879,39860.0,39859.0,0.13632608]
[1610155235614,0.7879,39860.0,39853.0,0.12107]
[1610155236116,0.3195,39860.0,39859.0,0.13632608]
[1610155236917,0.2985,39872.0,39859.0,0.13632608]
[1610155238118,0.13632608,39866.0,39859.0,0.13632608]
[1610155238623,0.13632608,39866.0,39853.0,0.12107]
[1610155239420,0.13632608,39866.0,39849.0,3.3488]
[1610155239825,0.2985,39872.0,39849.0,3.3488]
[1610155240021,0.2985,39872.0,39849.0,3.46806]
[1610155240321,0.2985,39872.0,39862.0,0.13632608]
[1610155240723,0.2985,39872.0,39862.0,0.54792608]
[1610155241625,0.2985,39872.0,39862.0,0.13632608]
[1610155242024,0.2985,39872.0,39869.0,4.0102]
[1610155242334,0.2985,39872.0,39871.0,0.13632608]
[1610155243823,0.47330638,39881.0,39871.0,0.13632608]
[1610155244324,0.47330638,39881.0,39880.0,0.13632608]
[1610155244524,0.47330638,39881.0,39880.0,0.22264608]
[1610155245425,0.05830638,39881.0,39880.0,0.22264608]
[1610155245825,0.1569,39935.0,39896.0,3.2375]
[1610155246027,0.1569,39935.0,39896.0,3.31705]
[1610155246226,0.1569,39935.0,39934.0,0.13632608]
[1610155247528,0.1569,39935.0,39933.0,3.1324]
[1610155247727,0.1569,39935.0,39923.0,0.1188]
[1610155247927,0.09251,39946.0,39923.0,0.1188]
[1610155248529,0.13632608,39924.0,39910.0,0.11359]
[1610155249529,0.13632608,39924.0,39870.0,3.8382]
[1610155249931,0.1569,39923.0,39870.0,3.8382]
[1610155250132,0.43279501,39922.0,39870.0,3.8382]
[1610155250533,0.13632608,39871.0,39870.0,3.8382]
[1610155250733,0.24652608,39871.0,39870.0,3.8382]
[1610155251132,0.1102,39871.0,39870.0,3.8382]
[1610155251932,0.12225,39879.0,39870.0,3.8382]
[1610155252332,0.12225,39879.0,39870.0,3.93729]
[1610155252534,0.13632608,39905.0,39878.0,0.13632608]
[1610155252831,0.13632608,39905.0,39878.0,3.83180608]
[1610155253032,0.3195,39909.0,39878.0,3.83180608]
[1610155253332,0.3195,39909.0,39878.0,0.25360608]
[1610155253532,0.3195,39909.0,39883.0,2.9696]
[1610155254136,0.1569,39923.0,39883.0,2.9696]
[1610155254534,0.1569,39923.0,39922.0,0.13632608]
[1610155255139,0.08429,39929.0,39922.0,0.13632608]
[1610155255336,0.13632608,39931.0,39922.0,0.13632608]
[1610155255537,0.13632608,39931.0,39908.0,0.11159]
[1610155255737,0.21480608,39931.0,39883.0,2.9696]
[1610155255939,0.21480608,39931.0,39878.0,0.11728]
[1610155256339,0.21480608,39931.0,39870.0,0.09909]
[1610155256540,0.13632608,39871.0,39870.0,0.09909]
[1610155256740,0.13632608,39871.0,39857.0,0.13632608]
[1610155257040,0.13632608,39871.0,39835.0,2.9411]
[1610155257237,0.13632608,39871.0,39807.0,0.01]
[1610155257543,0.1569,39870.0,39807.0,0.01]
[1610155257741,0.27764,39870.0,39807.0,0.01]
[1610155258439,0.13632608,39856.0,39840.0,0.13632608]
[1610155258638,0.09866,39857.0,39840.0,0.13632608]
[1610155259239,0.09866,39857.0,39834.0,0.10944]
[1610155259540,0.1569,39898.0,39834.0,0.10944]
[1610155260442,0.1569,39898.0,39897.0,0.13632608]
[1610155260743,0.7638,39899.0,39897.0,0.13632608]
[1610155260942,0.7638,39899.0,39878.0,0.08753]
[1610155261642,0.7638,39899.0,39868.0,3.3681]
[1610155262344,0.2954,39899.0,39868.0,3.3681]
[1610155262541,0.2954,39899.0,39898.0,0.13632608]
[1610155262744,0.2954,39899.0,39898.0,0.22118608]
[1610155263844,0.2954,39899.0,39898.0,0.13632608]
[1610155264945,0.2954,39899.0,39880.0,0.12319]
[1610155265145,0.38095,39899.0,39880.0,0.12319]
[1610155265746,0.38095,39899.0,39868.0,3.3681]
[1610155268455,0.38095,39899.0,39871.0,0.13632608]
[1610155268751,0.38095,39899.0,39846.0,0.10942]
[1610155269154,0.1569,39898.0,39846.0,0.10942]
[1610155269852,0.1569,39898.0,39834.0,0.10944]
[1610155270053,0.1569,39898.0,39818.0,3.7507]
[1610155270657,0.13632608,39877.0,39871.0,0.13632608]
[1610155270857,0.26157608,39877.0,39871.0,0.13632608]
[1610155272554,0.26157608,39877.0,39876.0,0.13632608]
[1610155273955,0.12525,39877.0,39876.0,0.13632608]
[1610155274557,0.1569,39898.0,39876.0,0.13632608]
[1610155274957,0.38095,39899.0,39876.0,0.13632608]
[1610155275760,0.2954,39899.0,39876.0,0.13632608]
[1610155276559,0.2954,39899.0,39898.0,0.13632608]
[1610155276762,0.2954,39899.0,39898.0,0.25709608]
[1610155276961,0.2954,39899.0,39898.0,4.43539608]
[1610155277565,0.1569,39957.0,39898.0,4.43539608]
[1610155278567,0.1569,39957.0,39953.0,0.13632608]
[1610155280167,0.1569,39984.0,39953.0,0.13632608]
[1610155280668,0.1569,39984.0,39966.0,0.13632608]
[1610155280871,0.1569,39984.0,39938.0,3.1113]
[1610155281069,0.43015,39971.0,39938.0,3.1113]
[1610155282671,0.43015,39971.0,39964.0,0.13632608]
[1610155283773,0.11065,39971.0,39964.0,0.13632608]
[1610155284573,0.11065,39971.0,39970.0,0.13632608]
[1610155285673,0.11065,39971.0,39958.0,2.9609]
[1610155285873,0.11835,39979.0,39958.0,2.9609]
[1610155286076,0.11835,39979.0,39958.0,3.04351]
[1610155287175,0.11835,39979.0,39958.0,2.9609]
[1610155288578,0.11835,39979.0,39967.0,0.13632608]
[1610155290577,0.11835,39979.0,39978.0,0.13632608]
[1610155290979,0.3195,40013.0,39978.0,0.13632608]
[1610155291180,0.3195,40013.0,39945.0,0.09506]
[1610155291379,0.39721,40013.0,39966.0,3.5445]
[1610155292379,0.39721,40013.0,39961.0,0.11191]
[1610155292579,0.39721,40013.0,40012.0,0.13632608]
[1610155292780,0.07771,40013.0,40012.0,0.13632608]
[1610155294682,0.21403608,40013.0,40012.0,0.13632608]
[1610155294883,0.21403608,40013.0,39988.0,2.967]
[1610155296084,0.07771,40013.0,39988.0,2.967]
[1610155296288,0.01462382,40037.0,39988.0,2.967]
[1610155296484,0.01460017,40032.0,39988.0,2.967]
[1610155296685,0.10617,40032.0,40031.0,0.13632608]
[1610155297086,0.10617,40032.0,40013.0,2.899]
[1610155298691,0.10617,40032.0,40031.0,0.13632608]
[1610155301696,0.1569,40047.0,40031.0,0.13632608]
[1610155302895,0.1569,40047.0,40029.0,4.1396]
[1610155302896,0.1569,40047.0,40046.0,0.13632608]
[1610155304796,0.2726,40078.0,40051.0,3.0449]
[1610155306096,0.1569,40083.0,40051.0,2.64165762]
[1610155306799,0.1569,40083.0,40082.0,0.13632608]
[1610155307197,0.1569,40083.0,40051.0,2.64165762]
[1610155307498,0.25431,40083.0,40051.0,2.64165762]
[1610155308500,0.09741,40083.0,40051.0,2.64165762]
[1610155308700,0.09741,40083.0,40082.0,0.13632608]
[1610155309004,0.09741,40083.0,40058.0,0.12202]
[1610155309201,0.09741,40083.0,40049.0,0.10431]
[1610155309403,0.09741,40083.0,40038.0,0.12402]
[1610155309602,0.09741,40083.0,40035.0,4.1431]
[1610155310704,0.09741,40083.0,40082.0,0.13632608]
[1610155312505,0.2823,40100.0,40082.0,0.13632608]
[1610155312705,0.2823,40100.0,40099.0,0.13632608]
[1610155313107,0.2823,40100.0,40081.0,3.3178]
[1610155313408,0.35932,40100.0,40053.0,0.10385]
[1610155313607,0.35932,40100.0,40062.0,3.1818]
[1610155314708,0.35932,40100.0,40076.0,0.13632608]
[1610155315412,0.38330155,40078.0,40076.0,0.13632608]
[1610155315608,0.46104155,40078.0,40076.0,0.13632608]
[1610155315809,0.46104155,40078.0,40077.0,4.023]
[1610155317013,0.46104155,40078.0,40076.0,0.13632608]
[1610155318813,0.59736763,40078.0,40076.0,0.13632608]
[1610155319313,0.46104155,40078.0,40076.0,0.13632608]
[1610155320716,0.46104155,40078.0,40077.0,0.5836]
[1610155321617,0.46104155,40078.0,40076.0,0.13632608]
[1610155322413,0.46104155,40078.0,40064.0,3.9126]
[1610155323014,0.13632608,40065.0,40062.0,0.13632608]